fUSD/lending_fUSD_20260607
["ID","MTS","AMOUNT","RATE_DAILY","PERIOD"]
[424398072,1780828243000,-164.063853,0.00016332,2]
[424398097,1780828243000,-1109.48,0.00016931,2]
[424398083,1780828243000,-202.576104,0.00016438,2]
[424398105,1780828243000,-500.0,0.00017329,2]
[424398106,1780828243000,-300.0,0.00017407,7]
[424398094,1780828243000,-186.0,0.000168,3]
[424398095,1780828243000,-500.0,0.00016877,2]
[424398096,1780828243000,-529.20745319,0.00016877,2]
[424398089,1780828243000,-194.64813055,0.00016626,2]
[424398088,1780828243000,-370.376109,0.00016506,2]
[424398086,1780828243000,-202.576104,0.00016438,2]
[424398085,1780828243000,-202.576104,0.00016438,2]
[424398081,1780828243000,-816.420522,0.00016438,2]
[424398087,1780828243000,-543.0,0.00016478,5]
[424398168,1780828244000,-500.0,0.00018257,2]
[424398171,1780828244000,-152.0,0.00018257,2]
[424398172,1780828244000,-500.0,0.00018257,2]
[424398165,1780828244000,-151.0,0.00018257,2]
[424398169,1780828244000,-151.0,0.00018257,2]
[424398161,1780828244000,-151.0,0.00018257,2]
[424398167,1780828244000,-152.0,0.00018257,2]
[424398164,1780828244000,-500.0,0.00018257,2]
[424398162,1780828244000,-151.0,0.00018257,2]
[424398159,1780828244000,-160.0,0.00018257,2]
[424398173,1780828244000,-151.0,0.00018257,2]
[424398166,1780828244000,-151.0,0.00018257,2]
[424398182,1780828244000,-152.0,0.00018257,2]
[424398181,1780828244000,-151.0,0.00018257,2]
[424398179,1780828244000,-152.0,0.00018257,2]
[424398177,1780828244000,-151.0,0.00018257,2]
[424398175,1780828244000,-500.0,0.00018257,2]
[424398180,1780828244000,-151.0,0.00018257,2]
[424398176,1780828244000,-151.0,0.00018257,2]
[424398178,1780828244000,-500.0,0.00018257,2]
[424398184,1780828244000,-151.0,0.00018257,2]
[424398194,1780828244000,-152.0,0.00018257,2]
[424398195,1780828244000,-500.0,0.00018257,2]
[424398183,1780828244000,-500.0,0.00018257,2]
[424398185,1780828244000,-152.0,0.00018257,2]
[424398187,1780828244000,-151.0,0.00018257,2]
[424398174,1780828244000,-151.0,0.00018257,2]
[424398163,1780828244000,-152.0,0.00018257,2]
[424398132,1780828244000,-207.43286229,0.00018257,2]
[424398160,1780828244000,-151.0,0.00018257,2]
[424398131,1780828244000,-693.39197629,0.00018257,2]
[424398190,1780828244000,-151.0,0.00018257,2]
[424398144,1780828244000,-151.0,0.00018257,2]
[424398134,1780828244000,-151.0,0.00018257,2]
[424398142,1780828244000,-151.0,0.00018257,2]
[424398138,1780828244000,-151.0,0.00018257,2]
[424398136,1780828244000,-151.0,0.00018257,2]
[424398135,1780828244000,-209.40437684,0.00018257,2]
[424398140,1780828244000,-174.61919141,0.00018257,2]
[424398133,1780828244000,-561.15647577,0.00018257,2]
[424398137,1780828244000,-578.20924308,0.00018257,2]
[424398139,1780828244000,-151.0,0.00018257,2]
[424398143,1780828244000,-209.40437684,0.00018257,2]
[424398170,1780828244000,-151.0,0.00018257,2]
[424398145,1780828244000,-151.0,0.00018257,2]
[424398146,1780828244000,-151.0,0.00018257,2]
[424398148,1780828244000,-209.40437684,0.00018257,2]
[424398151,1780828244000,-151.0,0.00018257,2]
[424398149,1780828244000,-209.40437684,0.00018257,2]
[424398150,1780828244000,-200.0,0.00018257,2]
[424398154,1780828244000,-151.0,0.00018257,2]
[424398157,1780828244000,-500.0,0.00018257,2]
[424398147,1780828244000,-151.0,0.00018257,2]
[424398152,1780828244000,-151.0,0.00018257,2]
[424398156,1780828244000,-151.0,0.00018257,2]
[424398153,1780828244000,-500.0,0.00018257,2]
[424398158,1780828244000,-500.0,0.00018257,2]
[424398155,1780828244000,-151.0,0.00018257,2]
[424398141,1780828244000,-151.0,0.00018257,2]
[424398189,1780828244000,-152.0,0.00018257,2]
[424398186,1780828244000,-151.0,0.00018257,2]
[424398188,1780828244000,-500.0,0.00018257,2]
[424398224,1780828244000,-217.15233878,0.00018805,2]
[424398228,1780828244000,-151.0,0.00018807,2]
[424398227,1780828244000,-500.0,0.00018805,2]
[424398229,1780828244000,-300.0,0.00019,2]
[424398230,1780828244000,-365.04274191,0.0001901,7]
[424398231,1780828244000,-500.0,0.00019098,2]
[424398233,1780828244000,-151.0,0.00019178,2]
[424398243,1780828244000,-999.99,0.00019339,2]
[424398234,1780828244000,-151.0,0.00019178,2]
[424398235,1780828244000,-151.0,0.00019178,2]
[424398236,1780828244000,-288.801163,0.00019178,2]
[424398232,1780828244000,-151.0,0.00019178,2]
[424398239,1780828244000,-288.801163,0.00019178,2]
[424398238,1780828244000,-288.801163,0.00019178,2]
[424398241,1780828244000,-150.99,0.00019339,2]
[424398242,1780828244000,-9999.99,0.00019339,2]
[424398240,1780828244000,-1385.48,0.000193,2]
[424398244,1780828244000,-809.74,0.00019339,2]
[424398246,1780828244000,-310.15,0.00019339,2]
[424398248,1780828244000,-2677.43,0.00019339,2]
[424398252,1780828244000,-500.0,0.00019344,2]
[424398247,1780828244000,-2893.29,0.00019339,2]
[424398251,1780828244000,-500.0,0.00019344,2]
[424398245,1780828244000,-1218.61,0.00019339,2]
[424398249,1780828244000,-299.99,0.00019339,7]
[424398250,1780828244000,-9800.09,0.00019339,2]
[424398191,1780828244000,-500.0,0.00018257,2]
[424398222,1780828244000,-217.15233878,0.00018805,2]
[424398225,1780828244000,-200.0,0.00018805,2]
[424398237,1780828244000,-288.801163,0.00019178,2]
[424398223,1780828244000,-151.0,0.00018805,2]
[424398193,1780828244000,-151.0,0.00018257,2]
[424398226,1780828244000,-151.0,0.00018805,2]
[424398192,1780828244000,-152.0,0.00018257,2]
[424398196,1780828244000,-151.0,0.00018257,2]
[424398198,1780828244000,-151.0,0.00018257,2]
[424398201,1780828244000,-151.0,0.00018312,2]
[424398199,1780828244000,-152.0,0.00018257,2]
[424398197,1780828244000,-152.0,0.00018257,2]
[424398205,1780828244000,-231.02597309,0.000184,2]
[424398207,1780828244000,-231.02597309,0.000184,2]
[424398204,1780828244000,-166.72606526,0.000184,2]
[424398202,1780828244000,-151.0,0.00018367,2]
[424398203,1780828244000,-160.0,0.00018379,2]
[424398206,1780828244000,-231.02597309,0.000184,2]
[424398200,1780828244000,-559.94040983,0.00018312,2]
[424398214,1780828244000,-176.0,0.000187,2]
[424398221,1780828244000,-181.08010149,0.00018805,2]
[424398209,1780828244000,-151.0,0.00018477,2]
[424398218,1780828244000,-200.0,0.00018805,2]
[424398216,1780828244000,-193.88,0.000188,8]
[424398217,1780828244000,-1110.86,0.000188,7]
[424398213,1780828244000,-151.0,0.00018697,2]
[424398215,1780828244000,-151.0,0.00018752,2]
[424398210,1780828244000,-151.0,0.00018532,2]
[424398208,1780828244000,-151.0,0.00018422,2]
[424398220,1780828244000,-151.0,0.00018805,2]
[424398219,1780828244000,-217.15233878,0.00018805,2]
[424398211,1780828244000,-151.0,0.00018587,2]
[424398212,1780828244000,-151.0,0.00018642,2]
[424398291,1780828245000,-620.0,0.0002,2]
[424398307,1780828245000,-242.15909246,0.00020449,2]
[424398297,1780828245000,-301.05978374,0.0002,2]
[424398295,1780828245000,-400.0,0.0002,2]
[424398288,1780828245000,-150.0,0.0002,2]
[424398286,1780828245000,-432.0,0.0002,2]
[424398284,1780828245000,-221.0,0.0002,2]
[424398290,1780828245000,-670.0,0.0002,2]
[424398292,1780828245000,-390.0,0.0002,2]
[424398289,1780828245000,-584.0,0.0002,2]
[424398285,1780828245000,-529.0,0.0002,2]
[424398296,1780828245000,-6517.58485404,0.0002,2]
[424398287,1780828245000,-190.334213,0.0002,2]
[424398306,1780828245000,-200.0,0.00020449,2]
[424398311,1780828245000,-151.0,0.00020449,2]
[424398299,1780828245000,-200.0,0.0002,2]
[424398304,1780828245000,-445.0,0.00020145,2]
[424398305,1780828245000,-445.0,0.00020145,2]
[424398301,1780828245000,-544.0,0.0002,2]
[424398302,1780828245000,-719.0,0.0002,2]
[424398303,1780828245000,-405.0,0.00020145,2]
[424398319,1780828245000,-3554.0,0.00020951,2]
[424398308,1780828245000,-151.0,0.00020449,2]
[424398310,1780828245000,-242.15909246,0.00020449,2]
[424398309,1780828245000,-201.93286098,0.00020449,2]
[424398313,1780828245000,-200.0,0.00020449,2]
[424398312,1780828245000,-242.15909246,0.00020449,2]
[424398282,1780828245000,-590.0,0.0002,2]
[424398300,1780828245000,-198.0,0.0002,2]
[424398294,1780828245000,-291.0,0.0002,2]
[424398255,1780828245000,-200.0,0.00019353,2]
[424398283,1780828245000,-623.0,0.0002,2]
[424398314,1780828245000,-151.0,0.00020449,2]
[424398253,1780828245000,-556.45,0.00019344,2]
[424398254,1780828245000,-198.03542796,0.00019348,2]
[424398257,1780828245000,-151.0,0.00019353,2]
[424398267,1780828245000,-156.587,0.00019626,2]
[424398256,1780828245000,-225.18697532,0.00019353,2]
[424398268,1780828245000,-217.15233878,0.00019626,2]
[424398264,1780828245000,-500.0,0.00019353,2]
[424398266,1780828245000,-176.0,0.00019522,2]
[424398261,1780828245000,-225.18697532,0.00019353,2]
[424398258,1780828245000,-187.78006524,0.00019353,2]
[424398260,1780828245000,-151.0,0.00019353,2]
[424398262,1780828245000,-200.0,0.00019353,2]
[424398263,1780828245000,-151.0,0.00019353,2]
[424398259,1780828245000,-225.18697532,0.00019353,2]
[424398265,1780828245000,-685.11,0.00019355,7]
[424398279,1780828245000,-500.0,0.00019901,2]
[424398274,1780828245000,-233.5188934,0.00019901,2]
[424398278,1780828245000,-151.0,0.00019901,2]
[424398272,1780828245000,-151.0,0.00019901,2]
[424398271,1780828245000,-233.5188934,0.00019901,2]
[424398273,1780828245000,-194.72792766,0.00019901,2]
[424398270,1780828245000,-200.0,0.00019901,2]
[424398281,1780828245000,-1044.0,0.0002,2]
[424398280,1780828245000,-10000.0,0.00019946,2]
[424398269,1780828245000,-160.0,0.00019626,2]
[424398277,1780828245000,-200.0,0.00019901,2]
[424398275,1780828245000,-151.0,0.00019901,2]
[424398276,1780828245000,-233.5188934,0.00019901,2]
[424398293,1780828245000,-296.0,0.0002,2]
[424398317,1780828245000,-382.0,0.00020951,2]
[424398298,1780828245000,-378.0,0.0002,2]
[424398315,1780828245000,-500.0,0.00020449,2]
[424398352,1780828245000,-2781.38,0.00021205,2]
[424398357,1780828245000,-151.0,0.00021545,2]
[424398350,1780828245000,-198.0,0.00021,2]
[424398353,1780828245000,-152.0,0.00021383,3]
[424398351,1780828245000,-544.0,0.00021,2]
[424398349,1780828245000,-378.0,0.00021,2]
[424398356,1780828245000,-260.4103811,0.00021545,2]
[424398355,1780828245000,-200.0,0.00021545,2]
[424398354,1780828245000,-500.0,0.00021424,2]
[424398361,1780828245000,-260.4103811,0.00021545,2]
[424398371,1780828245000,-151.000018,0.00021918,2]
[424398372,1780828245000,-151.0,0.00021918,2]
[424398364,1780828245000,-500.0,0.00021545,2]
[424398362,1780828245000,-200.0,0.00021545,2]
[424398360,1780828245000,-151.0,0.00021545,2]
[424398365,1780828245000,-152.0,0.00021677,4]
[424398363,1780828245000,-151.0,0.00021545,2]
[424398370,1780828245000,-5000.0,0.00021918,2]
[424398367,1780828245000,-49035.2727232,0.00021763,2]
[424398368,1780828245000,-500.0,0.00021846,2]
[424398366,1780828245000,-267488.6753284,0.00021763,2]
[424398369,1780828245000,-500.0,0.00021902,2]
[424398373,1780828245000,-151.0,0.00021918,2]
[424398375,1780828245000,-800.0,0.00021918,2]
[424398378,1780828245000,-200.0,0.00021918,2]
[424398376,1780828245000,-800.0,0.00021918,2]
[424398374,1780828245000,-200.0,0.00021918,2]
[424398377,1780828245000,-901.90918197,0.00021918,2]
[424398379,1780828245000,-152.0,0.0002197,5]
[424398347,1780828245000,-296.0,0.00021,2]
[424398359,1780828245000,-260.4103811,0.00021545,2]
[424398316,1780828245000,-168.32,0.00020639,2]
[424398348,1780828245000,-291.0,0.00021,2]
[424398318,1780828245000,-1227.0,0.00020951,2]
[424398320,1780828245000,-1358.0,0.00020951,2]
[424398322,1780828245000,-516.0,0.00020951,2]
[424398323,1780828245000,-162.380719,0.00020995,2]
[424398324,1780828245000,-225.18697532,0.00020995,2]
[424398332,1780828245000,-151.0,0.00020997,2]
[424398326,1780828245000,-599.60298507,0.00020996,2]
[424398329,1780828245000,-151.0,0.00020997,2]
[424398358,1780828245000,-217.15233878,0.00021545,2]
[424398333,1780828245000,-251.11897888,0.00020997,2]
[424398321,1780828245000,-500.0,0.00020951,2]
[424398325,1780828245000,-160.0,0.00020995,2]
[424398380,1780828245000,-502.92334437,0.00021999,2]
[424398330,1780828245000,-209.40437684,0.00020997,2]
[424398327,1780828245000,-200.0,0.00020997,2]
[424398328,1780828245000,-251.11897888,0.00020997,2]
[424398331,1780828245000,-251.11897888,0.00020997,2]
[424398335,1780828245000,-151.0,0.00020997,2]
[424398345,1780828245000,-620.0,0.00021,2]
[424398340,1780828245000,-221.0,0.00021,2]
[424398344,1780828245000,-670.0,0.00021,2]
[424398341,1780828245000,-529.0,0.00021,2]
[424398346,1780828245000,-390.0,0.00021,2]
[424398342,1780828245000,-432.0,0.00021,2]
[424398339,1780828245000,-623.0,0.00021,2]
[424398343,1780828245000,-584.0,0.00021,2]
[424398337,1780828245000,-206.26472715,0.00021,2]
[424398336,1780828245000,-500.0,0.00020997,2]
[424398334,1780828245000,-200.0,0.00020997,2]
[424398338,1780828245000,-590.0,0.00021,2]
[424398429,1780828246000,-623.0,0.00023,2]
[424398426,1780828246000,-200.0,0.0002267,2]
[424398419,1780828246000,-151.0,0.00022641,2]
[424398421,1780828246000,-280.03725111,0.00022641,2]
[424398417,1780828246000,-200.0,0.00022641,2]
[424398420,1780828246000,-233.5188934,0.00022641,2]
[424398416,1780828246000,-2667.73245684,0.000226,2]
[424398415,1780828246000,-152.0,0.00022558,7]
[424398412,1780828246000,-187.70426596,0.00022364,2]
[424398414,1780828246000,-727.91,0.00022466,2]
[424398418,1780828246000,-280.03725111,0.00022641,2]
[424398422,1780828246000,-151.0,0.00022641,2]
[424398433,1780828246000,-584.0,0.00023,2]
[424398446,1780828246000,-151.0,0.00023189,2]
[424398432,1780828246000,-432.0,0.00023,2]
[424398434,1780828246000,-670.0,0.00023,2]
[424398435,1780828246000,-620.0,0.00023,2]
[424398427,1780828246000,-152.0,0.00022851,8]
[424398425,1780828246000,-500.0,0.00022641,2]
[424398431,1780828246000,-529.0,0.00023,2]
[424398430,1780828246000,-221.0,0.00023,2]
[424398436,1780828246000,-390.0,0.00023,2]
[424398437,1780828246000,-296.0,0.00023,2]
[424398438,1780828246000,-291.0,0.00023,2]
[424398440,1780828246000,-198.0,0.00023,2]
[424398439,1780828246000,-378.0,0.00023,2]
[424398443,1780828246000,-152.0,0.00023145,9]
[424398423,1780828246000,-200.0,0.00022641,2]
[424398428,1780828246000,-590.0,0.00023,2]
[424398424,1780828246000,-151.0,0.00022641,2]
[424398392,1780828246000,-291.0,0.00022,2]
[424398409,1780828246000,-500.0,0.00022356,2]
[424398448,1780828246000,-290.3986294,0.00023189,2]
[424398385,1780828246000,-432.0,0.00022,2]
[424398384,1780828246000,-529.0,0.00022,2]
[424398383,1780828246000,-221.0,0.00022,2]
[424398382,1780828246000,-623.0,0.00022,2]
[424398381,1780828246000,-590.0,0.00022,2]
[424398388,1780828246000,-670.0,0.00022,2]
[424398386,1780828246000,-190.334213,0.00022,2]
[424398393,1780828246000,-450.0,0.00022,2]
[424398397,1780828246000,-544.0,0.00022,2]
[424398398,1780828246000,-200.0,0.00022093,2]
[424398387,1780828246000,-584.0,0.00022,2]
[424398396,1780828246000,-198.0,0.00022,2]
[424398395,1780828246000,-378.0,0.00022,2]
[424398394,1780828246000,-1385.48,0.00022,7]
[424398391,1780828246000,-296.0,0.00022,2]
[424398390,1780828246000,-390.0,0.00022,2]
[424398389,1780828246000,-620.0,0.00022,2]
[424398399,1780828246000,-270.0455652,0.00022093,2]
[424398400,1780828246000,-151.0,0.00022093,2]
[424398402,1780828246000,-270.0455652,0.00022093,2]
[424398411,1780828246000,-233.5188934,0.00022364,2]
[424398401,1780828246000,-225.18697532,0.00022093,2]
[424398403,1780828246000,-151.0,0.00022093,2]
[424398407,1780828246000,-500.0,0.00022093,2]
[424398408,1780828246000,-152.0,0.00022264,6]
[424398405,1780828246000,-200.0,0.00022093,2]
[424398406,1780828246000,-151.0,0.00022093,2]
[424398404,1780828246000,-163.47518123,0.00022093,2]
[424398413,1780828246000,-1288.19,0.00022466,2]
[424398447,1780828246000,-242.15909246,0.00023189,2]
[424398410,1780828246000,-168.3888056,0.00022364,2]
[424398449,1780828246000,-151.0,0.00023189,2]
[424398480,1780828246000,-925.72,0.000239,14]
[424398476,1780828246000,-151.0,0.00023737,2]
[424398479,1780828246000,-151.0,0.00023737,2]
[424398481,1780828246000,-382.0,0.00023951,2]
[424398486,1780828246000,-623.0,0.00024,2]
[424398485,1780828246000,-590.0,0.00024,2]
[424398484,1780828246000,-1358.0,0.00023951,2]
[424398509,1780828246000,-150.0,0.000242,7]
[424398482,1780828246000,-1227.0,0.00023951,2]
[424398483,1780828246000,-1816.757,0.00023951,2]
[424398490,1780828246000,-190.334213,0.00024,2]
[424398501,1780828246000,-152.0,0.00024026,12]
[424398500,1780828246000,-544.0,0.00024,2]
[424398488,1780828246000,-529.0,0.00024,2]
[424398491,1780828246000,-584.0,0.00024,2]
[424398492,1780828246000,-670.0,0.00024,2]
[424398493,1780828246000,-620.0,0.00024,2]
[424398496,1780828246000,-291.0,0.00024,2]
[424398497,1780828246000,-500.0,0.00024,2]
[424398499,1780828246000,-198.0,0.00024,2]
[424398494,1780828246000,-390.0,0.00024,2]
[424398498,1780828246000,-378.0,0.00024,2]
[424398504,1780828246000,-1385.48,0.000242,7]
[424398503,1780828246000,-542.71,0.00024174,2]
[424398508,1780828246000,-150.0,0.000242,7]
[424398506,1780828246000,-150.0,0.000242,7]
[424398505,1780828246000,-150.0,0.000242,7]
[424398507,1780828246000,-255.0,0.000242,7]
[424398489,1780828246000,-432.0,0.00024,2]
[424398478,1780828246000,-500.0,0.00023737,2]
[424398495,1780828246000,-296.0,0.00024,2]
[424398477,1780828246000,-221.31376078,0.00023737,2]
[424398487,1780828246000,-221.0,0.00024,2]
[424398441,1780828246000,-1292.0,0.00023,2]
[424398442,1780828246000,-544.0,0.00023,2]
[424398444,1780828246000,-200.0,0.00023189,2]
[424398450,1780828246000,-200.0,0.00023189,2]
[424398462,1780828246000,-350.0,0.000235,30]
[424398461,1780828246000,-260.0,0.000235,30]
[424398451,1780828246000,-151.0,0.00023189,2]
[424398454,1780828246000,-184.16684233,0.00023403,2]
[424398453,1780828246000,-187.29333961,0.00023403,2]
[424398455,1780828246000,-181.34930069,0.00023403,2]
[424398452,1780828246000,-500.0,0.00023189,2]
[424398460,1780828246000,-7420.09804011,0.000235,30]
[424398457,1780828246000,-178.07125882,0.00023403,2]
[424398459,1780828246000,-200.0,0.00023442,2]
[424398445,1780828246000,-290.3986294,0.00023189,2]
[424398458,1780828246000,-152.0,0.00023439,10]
[424398469,1780828246000,-242.15909246,0.00023733,2]
[424398456,1780828246000,-179.23041004,0.00023403,2]
[424398475,1780828246000,-301.14337869,0.00023737,2]
[424398473,1780828246000,-296.62077113,0.00023737,2]
[424398468,1780828246000,-174.61919141,0.00023733,2]
[424398467,1780828246000,-152.0,0.00023732,11]
[424398464,1780828246000,-350.0,0.000235,30]
[424398474,1780828246000,-251.11897888,0.00023737,2]
[424398472,1780828246000,-301.14337869,0.00023737,2]
[424398470,1780828246000,-627.3780085,0.00023735,2]
[424398465,1780828246000,-350.0,0.000235,30]
[424398466,1780828246000,-469.0,0.000235,30]
[424398463,1780828246000,-350.0,0.000235,30]
[424398471,1780828246000,-200.0,0.00023737,2]
[424398541,1780828247000,-150.0,0.00024539,2]
[424398542,1780828247000,-150.0,0.00024539,2]
[424398533,1780828247000,-260.4103811,0.00024285,2]
[424398535,1780828247000,-150.0,0.00024439,2]
[424398545,1780828247000,-150.0,0.00024539,2]
[424398539,1780828247000,-190.97618881,0.00024452,2]
[424398543,1780828247000,-150.0,0.00024539,2]
[424398536,1780828247000,-150.0,0.00024439,2]
[424398548,1780828247000,-351.13786566,0.00024566,2]
[424398537,1780828247000,-150.0,0.00024439,2]
[424398538,1780828247000,-257.0,0.00024439,2]
[424398546,1780828247000,-150.0,0.00024539,2]
[424398547,1780828247000,-211.0,0.00024539,2]
[424398544,1780828247000,-150.0,0.00024539,2]
[424398549,1780828247000,-168.32,0.00024566,2]
[424398551,1780828247000,-1226.53,0.00024658,2]
[424398558,1780828247000,-177.154537,0.00024658,2]
[424398540,1780828247000,-208.11586911,0.00024493,2]
[424398534,1780828247000,-152.0,0.0002432,13]
[424398520,1780828247000,-200.0,0.00024234,2]
[424398525,1780828247000,-200.0,0.00024234,2]
[424398556,1780828247000,-262.509128,0.00024658,2]
[424398514,1780828247000,-150.0,0.000242,7]
[424398515,1780828247000,-150.0,0.000242,7]
[424398516,1780828247000,-184.0,0.000242,7]
[424398513,1780828247000,-150.0,0.000242,7]
[424398512,1780828247000,-150.0,0.000242,7]
[424398511,1780828247000,-150.0,0.000242,7]
[424398517,1780828247000,-172.0,0.000242,7]
[424398518,1780828247000,-200.0,0.00024215,2]
[424398532,1780828247000,-200.0,0.00024285,2]
[424398529,1780828247000,-200.0,0.00024234,2]
[424398531,1780828247000,-269.0,0.00024234,2]
[424398530,1780828247000,-200.0,0.00024234,2]
[424398519,1780828247000,-843.10930516,0.00024231,2]
[424398521,1780828247000,-200.0,0.00024234,2]
[424398527,1780828247000,-200.0,0.00024234,2]
[424398523,1780828247000,-200.0,0.00024234,2]
[424398522,1780828247000,-200.0,0.00024234,2]
[424398510,1780828247000,-171.0,0.000242,7]
[424398552,1780828247000,-1000.0,0.00024658,2]
[424398550,1780828247000,-152.0,0.00024613,14]
[424398583,1780828247000,-599.04775635,0.00025,2]
[424398576,1780828247000,-200.0,0.0002493,30]
[424398574,1780828247000,-200.0,0.0002493,30]
[424398584,1780828247000,-626.30136407,0.00025,2]
[424398579,1780828247000,-500.0,0.00024932,2]
[424398582,1780828247000,-200.0,0.00024987,2]
[424398578,1780828247000,-500.0,0.00024932,2]
[424398586,1780828247000,-545.45689059,0.00025,2]
[424398577,1780828247000,-311.0,0.0002493,30]
[424398593,1780828247000,-299.86647971,0.00025,2]
[424398590,1780828247000,-630.82694533,0.00025,2]
[424398595,1780828247000,-86563.65095997,0.00025,7]
[424398585,1780828247000,-237.19811307,0.00025,2]
[424398588,1780828247000,-593.35498657,0.00025,2]
[424398592,1780828247000,-299.35319261,0.00025,2]
[424398591,1780828247000,-398.22913602,0.00025,2]
[424398594,1780828247000,-458.30412822,0.00025,60]
[424398553,1780828247000,-262.509128,0.00024658,2]
[424398589,1780828247000,-671.31787866,0.00025,2]
[424398581,1780828247000,-646.0,0.00024946,7]
[424398587,1780828247000,-448.14215651,0.00025,2]
[424398575,1780828247000,-200.0,0.0002493,30]
[424398580,1780828247000,-504.48,0.00024946,7]
[424398554,1780828247000,-262.509128,0.00024658,2]
[424398555,1780828247000,-262.509128,0.00024658,2]
[424398561,1780828247000,-340.111438,0.00024658,2]
[424398557,1780828247000,-177.154537,0.00024658,2]
[424398571,1780828247000,-448.48793572,0.00024908,30]
[424398566,1780828247000,-646.0,0.00024658,2]
[424398567,1780828247000,-500.0,0.00024706,2]
[424398559,1780828247000,-177.154537,0.00024658,2]
[424398560,1780828247000,-177.154537,0.00024658,2]
[424398563,1780828247000,-340.111438,0.00024658,2]
[424398564,1780828247000,-340.111438,0.00024658,2]
[424398565,1780828247000,-504.48,0.00024658,2]
[424398568,1780828247000,-245.18919804,0.00024833,2]
[424398570,1780828247000,-152.0,0.00024907,15]
[424398569,1780828247000,-270.0455652,0.00024833,2]
[424398562,1780828247000,-340.111438,0.00024658,2]
[424398572,1780828247000,-216.0,0.0002493,30]
[424398573,1780828247000,-200.0,0.0002493,30]
[424398596,1780828248000,-1550.68313241,0.00025,7]
[424398597,1780828248000,-187.63,0.00013699,2]
[424398600,1780828248000,-535.94319742,0.00025,7]
[424398599,1780828248000,-2166.69787519,0.00025,7]
[424398601,1780828248000,-35795.66587181,0.00025,7]
[424398598,1780828248000,-1391.49064011,0.00025,7]
[424398632,1780828249000,-2781.38,0.00025644,2]
[424398643,1780828249000,-550.0,0.00026,2]
[424398636,1780828249000,-243.39933565,0.00025785,2]
[424398633,1780828249000,-235.0,0.00025661,2]
[424398635,1780828249000,-207.2,0.00025772,2]
[424398634,1780828249000,-200.0,0.0002576,2]
[424398631,1780828249000,-206.35169579,0.00025643,2]
[424398638,1780828249000,-152.0,0.00025788,18]
[424398637,1780828249000,-542.71,0.00025786,2]
[424398641,1780828249000,-646.0,0.00025811,7]
[424398644,1780828249000,-1385.48,0.00026,7]
[424398645,1780828249000,-220.12838681,0.00026,2]
[424398642,1780828249000,-290.3986294,0.00025929,2]
[424398655,1780828249000,-1380.14437613,0.00026397,2]
[424398650,1780828249000,-160.0,0.00026117,3]
[424398652,1780828249000,-152.0,0.00026375,20]
[424398648,1780828249000,-504.48,0.00026099,30]
[424398647,1780828249000,-152.0,0.00026082,19]
[424398649,1780828249000,-646.0,0.00026099,30]